{"text_format":"3","workbook":"xlsx","n_sheets":1,"sheets":["Бюджет некоммерческой орг-ции"],"not_rendered":{"charts":2,"images":1,"defined_names":1},"read":"whole","date_system":"1900"}

{"sheet":"Бюджет некоммерческой орг-ции","index":0,"n_rows":40,"n_cols":7,"rows_kept":40,"merged":[[16,1,16,6],[21,1,21,5]]}
[null,"Бюджет некоммерческой организации",{"$nulls":3},"ФИНАНСОВЫЙ ГОД",2012]
{"$rows_empty":7}
[null,null,{"$f":"CONCATENATE(\"ФГ \",ФГ-1)","v":"ФГ 2011"},{"$f":"CONCATENATE(\"ФГ \",ФГ)","v":"ФГ 2012"},{"$f":"CONCATENATE(\"ФГ \",ФГ)","v":"ФГ 2012"},{"$f":"CONCATENATE(\"ФГ \",ФГ)","v":"ФГ 2012"},{"$f":"CONCATENATE(\"ФГ \",ФГ)","v":"ФГ 2012"}]
[null,"ВЫРУЧКА","ПРЕДЫДУЩИЙ ГОД","ПРЕДПОЛАГАЕМЫЕ","ФАКТИЧЕСКИЕ","РАЗНИЦА","ПО ОТНОШЕНИЮ К ПРЕДЫДУЩЕМУ ГОДУ"]
[null,"Акции и мероприятия",{"v":150000,"d":"150000.00"},{"v":200000,"d":"200000.00"},{"v":180000,"d":"180000.00"},{"$f":"ВыручкаTable[[#This Row],[ФАКТИЧЕСКИЕ]]-ВыручкаTable[[#This Row],[ПРЕДПОЛАГАЕМЫЕ]]","v":{"v":-20000,"d":"-20000.00"}},{"$f":"ВыручкаTable[[#This Row],[ФАКТИЧЕСКИЕ]]-ВыручкаTable[[#This Row],[ПРЕДЫДУЩИЙ ГОД]]","v":{"v":30000,"d":"30000.00"}}]
[null,"Фонд",{"v":50000,"d":"50000.00"},{"v":50000,"d":"50000.00"},{"v":50000,"d":"50000.00"},{"$f":"ВыручкаTable[[#This Row],[ФАКТИЧЕСКИЕ]]-ВыручкаTable[[#This Row],[ПРЕДПОЛАГАЕМЫЕ]]","v":{"v":0,"d":"0.00"}},{"$f":"ВыручкаTable[[#This Row],[ФАКТИЧЕСКИЕ]]-ВыручкаTable[[#This Row],[ПРЕДЫДУЩИЙ ГОД]]","v":{"v":0,"d":"0.00"}}]
[null,"Пожертвования",{"v":30000,"d":"30000.00"},{"v":40000,"d":"40000.00"},{"v":20000,"d":"20000.00"},{"$f":"ВыручкаTable[[#This Row],[ФАКТИЧЕСКИЕ]]-ВыручкаTable[[#This Row],[ПРЕДПОЛАГАЕМЫЕ]]","v":{"v":-20000,"d":"-20000.00"}},{"$f":"ВыручкаTable[[#This Row],[ФАКТИЧЕСКИЕ]]-ВыручкаTable[[#This Row],[ПРЕДЫДУЩИЙ ГОД]]","v":{"v":-10000,"d":"-10000.00"}}]
[null,"Доход от процентов",{"$nulls":3},{"$f":"ВыручкаTable[[#This Row],[ФАКТИЧЕСКИЕ]]-ВыручкаTable[[#This Row],[ПРЕДПОЛАГАЕМЫЕ]]","v":{"v":0,"d":"0.00"}},{"$f":"ВыручкаTable[[#This Row],[ФАКТИЧЕСКИЕ]]-ВыручкаTable[[#This Row],[ПРЕДЫДУЩИЙ ГОД]]","v":{"v":0,"d":"0.00"}}]
[null,"Разное",{"$nulls":3},{"$f":"ВыручкаTable[[#This Row],[ФАКТИЧЕСКИЕ]]-ВыручкаTable[[#This Row],[ПРЕДПОЛАГАЕМЫЕ]]","v":{"v":0,"d":"0.00"}},{"$f":"ВыручкаTable[[#This Row],[ФАКТИЧЕСКИЕ]]-ВыручкаTable[[#This Row],[ПРЕДЫДУЩИЙ ГОД]]","v":{"v":0,"d":"0.00"}}]
[null,"ИТОГИ",{"$f":"SUBTOTAL(109,ВыручкаTable[ПРЕДЫДУЩИЙ ГОД])","v":{"v":230000,"d":"230,000.00р."}},{"$f":"SUBTOTAL(109,ВыручкаTable[ПРЕДПОЛАГАЕМЫЕ])","v":{"v":290000,"d":"290,000.00р."}},{"$f":"SUBTOTAL(109,ВыручкаTable[ФАКТИЧЕСКИЕ])","v":{"v":250000,"d":"250,000.00р."}},{"$f":"SUBTOTAL(109,ВыручкаTable[РАЗНИЦА])","v":{"v":-40000,"d":"-40,000.00р."}},{"$f":"SUBTOTAL(105,ВыручкаTable[ПО ОТНОШЕНИЮ К ПРЕДЫДУЩЕМУ ГОДУ])","v":{"v":-10000,"d":"-10,000.00р."}}]
{"$rows_empty":8}
[null,null,{"$f":"CONCATENATE(\"ФГ \",ФГ-1)","v":"ФГ 2011"},{"$f":"CONCATENATE(\"ФГ \",ФГ)","v":"ФГ 2012"},{"$f":"CONCATENATE(\"ФГ \",ФГ)","v":"ФГ 2012"},{"$f":"CONCATENATE(\"ФГ \",ФГ)","v":"ФГ 2012"},{"$f":"CONCATENATE(\"ФГ \",ФГ)","v":"ФГ 2012"}]
[null,"РАСХОДЫ","ПРЕДЫДУЩИЙ ГОД","ПРЕДПОЛАГАЕМЫЕ","ФАКТИЧЕСКИЕ","РАЗНИЦА","ПО ОТНОШЕНИЮ К ПРЕДЫДУЩЕМУ ГОДУ"]
[null,"Зарплата",{"v":15000,"d":"15000.00"},{"v":30000,"d":"30000.00"},{"v":30000,"d":"30000.00"},{"$f":"ТаблицаРасхода[[#This Row],[ФАКТИЧЕСКИЕ]]-ТаблицаРасхода[[#This Row],[ПРЕДПОЛАГАЕМЫЕ]]","v":{"v":0,"d":"0.00"}},{"$f":"ТаблицаРасхода[[#This Row],[ФАКТИЧЕСКИЕ]]-ТаблицаРасхода[[#This Row],[ПРЕДЫДУЩИЙ ГОД]]","v":{"v":15000,"d":"15000.00"}}]
[null,"Льготы",{"v":5000,"d":"5000.00"},{"v":7500,"d":"7500.00"},{"v":7800,"d":"7800.00"},{"$f":"ТаблицаРасхода[[#This Row],[ФАКТИЧЕСКИЕ]]-ТаблицаРасхода[[#This Row],[ПРЕДПОЛАГАЕМЫЕ]]","v":{"v":300,"d":"300.00"}},{"$f":"ТаблицаРасхода[[#This Row],[ФАКТИЧЕСКИЕ]]-ТаблицаРасхода[[#This Row],[ПРЕДЫДУЩИЙ ГОД]]","v":{"v":2800,"d":"2800.00"}}]
[null,"Аренда",{"v":6000,"d":"6000.00"},{"v":6000,"d":"6000.00"},{"v":6000,"d":"6000.00"},{"$f":"ТаблицаРасхода[[#This Row],[ФАКТИЧЕСКИЕ]]-ТаблицаРасхода[[#This Row],[ПРЕДПОЛАГАЕМЫЕ]]","v":{"v":0,"d":"0.00"}},{"$f":"ТаблицаРасхода[[#This Row],[ФАКТИЧЕСКИЕ]]-ТаблицаРасхода[[#This Row],[ПРЕДЫДУЩИЙ ГОД]]","v":{"v":0,"d":"0.00"}}]
[null,"Коммунальные услуги",{"v":1000,"d":"1000.00"},{"v":1200,"d":"1200.00"},{"v":1150,"d":"1150.00"},{"$f":"ТаблицаРасхода[[#This Row],[ФАКТИЧЕСКИЕ]]-ТаблицаРасхода[[#This Row],[ПРЕДПОЛАГАЕМЫЕ]]","v":{"v":-50,"d":"-50.00"}},{"$f":"ТаблицаРасхода[[#This Row],[ФАКТИЧЕСКИЕ]]-ТаблицаРасхода[[#This Row],[ПРЕДЫДУЩИЙ ГОД]]","v":{"v":150,"d":"150.00"}}]
[null,"Поездки и собрания",{"v":2500,"d":"2500.00"},{"v":2000,"d":"2000.00"},{"v":2800,"d":"2800.00"},{"$f":"ТаблицаРасхода[[#This Row],[ФАКТИЧЕСКИЕ]]-ТаблицаРасхода[[#This Row],[ПРЕДПОЛАГАЕМЫЕ]]","v":{"v":800,"d":"800.00"}},{"$f":"ТаблицаРасхода[[#This Row],[ФАКТИЧЕСКИЕ]]-ТаблицаРасхода[[#This Row],[ПРЕДЫДУЩИЙ ГОД]]","v":{"v":300,"d":"300.00"}}]
[null,"Гоорары специалистов",{"$nulls":3},{"$f":"ТаблицаРасхода[[#This Row],[ФАКТИЧЕСКИЕ]]-ТаблицаРасхода[[#This Row],[ПРЕДПОЛАГАЕМЫЕ]]","v":{"v":0,"d":"0.00"}},{"$f":"ТаблицаРасхода[[#This Row],[ФАКТИЧЕСКИЕ]]-ТаблицаРасхода[[#This Row],[ПРЕДЫДУЩИЙ ГОД]]","v":{"v":0,"d":"0.00"}}]
[null,"Маркетинг/реклама",{"$nulls":3},{"$f":"ТаблицаРасхода[[#This Row],[ФАКТИЧЕСКИЕ]]-ТаблицаРасхода[[#This Row],[ПРЕДПОЛАГАЕМЫЕ]]","v":{"v":0,"d":"0.00"}},{"$f":"ТаблицаРасхода[[#This Row],[ФАКТИЧЕСКИЕ]]-ТаблицаРасхода[[#This Row],[ПРЕДЫДУЩИЙ ГОД]]","v":{"v":0,"d":"0.00"}}]
[null,"Страхование",{"$nulls":3},{"$f":"ТаблицаРасхода[[#This Row],[ФАКТИЧЕСКИЕ]]-ТаблицаРасхода[[#This Row],[ПРЕДПОЛАГАЕМЫЕ]]","v":{"v":0,"d":"0.00"}},{"$f":"ТаблицаРасхода[[#This Row],[ФАКТИЧЕСКИЕ]]-ТаблицаРасхода[[#This Row],[ПРЕДЫДУЩИЙ ГОД]]","v":{"v":0,"d":"0.00"}}]
[null,"Телефон",{"$nulls":3},{"$f":"ТаблицаРасхода[[#This Row],[ФАКТИЧЕСКИЕ]]-ТаблицаРасхода[[#This Row],[ПРЕДПОЛАГАЕМЫЕ]]","v":{"v":0,"d":"0.00"}},{"$f":"ТаблицаРасхода[[#This Row],[ФАКТИЧЕСКИЕ]]-ТаблицаРасхода[[#This Row],[ПРЕДЫДУЩИЙ ГОД]]","v":{"v":0,"d":"0.00"}}]
[null,"Интернет-расходы (веб-сайт, служба для собраний и т. д.)",{"$nulls":3},{"$f":"ТаблицаРасхода[[#This Row],[ФАКТИЧЕСКИЕ]]-ТаблицаРасхода[[#This Row],[ПРЕДПОЛАГАЕМЫЕ]]","v":{"v":0,"d":"0.00"}},{"$f":"ТаблицаРасхода[[#This Row],[ФАКТИЧЕСКИЕ]]-ТаблицаРасхода[[#This Row],[ПРЕДЫДУЩИЙ ГОД]]","v":{"v":0,"d":"0.00"}}]
[null,"Оборудование",{"$nulls":3},{"$f":"ТаблицаРасхода[[#This Row],[ФАКТИЧЕСКИЕ]]-ТаблицаРасхода[[#This Row],[ПРЕДПОЛАГАЕМЫЕ]]","v":{"v":0,"d":"0.00"}},{"$f":"ТаблицаРасхода[[#This Row],[ФАКТИЧЕСКИЕ]]-ТаблицаРасхода[[#This Row],[ПРЕДЫДУЩИЙ ГОД]]","v":{"v":0,"d":"0.00"}}]
[null,"Офисные принадлежности",{"$nulls":3},{"$f":"ТаблицаРасхода[[#This Row],[ФАКТИЧЕСКИЕ]]-ТаблицаРасхода[[#This Row],[ПРЕДПОЛАГАЕМЫЕ]]","v":{"v":0,"d":"0.00"}},{"$f":"ТаблицаРасхода[[#This Row],[ФАКТИЧЕСКИЕ]]-ТаблицаРасхода[[#This Row],[ПРЕДЫДУЩИЙ ГОД]]","v":{"v":0,"d":"0.00"}}]
[null,"Почтовые расходы",{"$nulls":3},{"$f":"ТаблицаРасхода[[#This Row],[ФАКТИЧЕСКИЕ]]-ТаблицаРасхода[[#This Row],[ПРЕДПОЛАГАЕМЫЕ]]","v":{"v":0,"d":"0.00"}},{"$f":"ТаблицаРасхода[[#This Row],[ФАКТИЧЕСКИЕ]]-ТаблицаРасхода[[#This Row],[ПРЕДЫДУЩИЙ ГОД]]","v":{"v":0,"d":"0.00"}}]
[null,"ИТОГИ",{"$f":"SUBTOTAL(109,ТаблицаРасхода[ПРЕДЫДУЩИЙ ГОД])","v":{"v":29500,"d":"29,500.00р."}},{"$f":"SUBTOTAL(109,ТаблицаРасхода[ПРЕДПОЛАГАЕМЫЕ])","v":{"v":46700,"d":"46,700.00р."}},{"$f":"SUBTOTAL(109,ТаблицаРасхода[ФАКТИЧЕСКИЕ])","v":{"v":47750,"d":"47,750.00р."}},{"$f":"SUBTOTAL(109,ТаблицаРасхода[РАЗНИЦА])","v":{"v":1050,"d":"1,050.00р."}},{"$f":"SUBTOTAL(109,ТаблицаРасхода[ПО ОТНОШЕНИЮ К ПРЕДЫДУЩЕМУ ГОДУ])","v":{"v":18250,"d":"18,250.00р."}}]